fUST/lending_fUST_20250614
["ID","MTS","AMOUNT","RATE_DAILY","PERIOD"]
[365783705,1749910253715,-887.35761853,0.000245,2]
[365783706,1749910253727,-69648.67942439,0.000245,2]
[365783707,1749910253738,-1693.33295708,0.000245,2]
[365783708,1749910253747,-845.10789306,0.000245,7]
[365783709,1749910253759,-160.0,0.000245,7]
[365783710,1749910253769,-835.41710878,0.000245,7]
[365783711,1749910253779,-229.82479369,0.000245,7]
[365783712,1749910253788,-3390.31613989,0.00024532,7]
[365783713,1749910253800,-3622.16584444,0.00024532,7]
[365783714,1749910253809,-179.26666,0.00024561,2]
[365783715,1749910253819,-2808.5084489,0.00024582,2]
[365783716,1749910253991,-373.89581599,0.00021917,4]
[365783717,1749910254002,-66.10418401,0.00021917,4]
[365783718,1749910254013,-460.0,0.00021917,4]
[365783719,1749910254023,-460.0,0.00021917,4]
[365783720,1749910254032,-104.96050311,0.00022191,4]
[365783721,1749910254242,-460.0,0.00021917,4]
[365783722,1749910254252,-460.0,0.00021917,4]
[365783723,1749910254261,-460.0,0.00021917,4]
[365783724,1749910254272,-355.03949689,0.00022191,4]
[365783725,1749910254282,-460.0,0.00022191,4]
[365783726,1749910254292,-460.0,0.00022191,4]
[365783727,1749910254302,-460.0,0.00022191,4]
[365783728,1749910254312,-460.0,0.00022191,4]
[365783729,1749910254323,-460.0,0.00022465,4]
[365783730,1749910254333,-460.0,0.00022465,4]
[365783731,1749910254343,-460.0,0.00022739,4]
[365783732,1749910254352,-460.0,0.00023013,4]
[365783733,1749910254362,-460.0,0.00023287,4]
[365783734,1749910254372,-460.0,0.00023561,4]
[365783735,1749910254382,-213.28201367,0.00023715,2]
[365783736,1749910254392,-160.0,0.00023715,2]
[365783737,1749910254401,-460.0,0.00023835,4]
[365783738,1749910254411,-460.0,0.00024109,4]
[365783739,1749910254421,-2772.37690587,0.0002425,2]
[365783740,1749910254430,-460.0,0.00024383,4]
[365783741,1749910254439,-2191.4915511,0.00024582,2]
[365783742,1749910254449,-5000.0,0.00024582,2]
[365783743,1749910254458,-5000.0,0.00024582,2]
[365783744,1749910254467,-529.83501143,0.0002459,11]
[365783745,1749910254478,-2000.0,0.000246,2]
[365783746,1749910254488,-250.0,0.000246,2]
[365783747,1749910254497,-250.0,0.000246,2]
[365783748,1749910254506,-250.0,0.000246,2]
[365783749,1749910254516,-250.0,0.000246,2]
[365783750,1749910254526,-250.0,0.000246,2]
[365783751,1749910254537,-250.0,0.000246,2]
[365783752,1749910254547,-151.0,0.000246,7]
[365783753,1749910254556,-2000.0,0.000246,2]
[365783754,1749910254565,-160.0,0.00024656,2]
[365783755,1749910254575,-984.78,0.00024657,4]
[365783756,1749910254584,-240.0,0.00024657,4]
[365783757,1749910254593,-719.31,0.00024657,4]
[365783758,1749910254604,-460.0,0.00024657,4]
[365783759,1749910254613,-1034.19,0.00024657,4]
[365783760,1749910254623,-608.47,0.00024657,4]
[365783761,1749910254632,-280.26,0.00024657,4]
[365783762,1749910254640,-460.0,0.00024657,4]
[365783763,1749910254649,-460.0,0.00024657,4]
[365783764,1749910254658,-460.0,0.00024657,4]
[365783765,1749910254668,-561.83,0.00024657,4]
[365783766,1749910254678,-595.41,0.00024657,4]
[365783767,1749910254687,-486.85981612,0.00024657,4]
[365783768,1749910254697,-2807.41,0.00024657,4]
[365783769,1749910254706,-460.0,0.00024657,4]
[365783770,1749910254716,-868.83,0.00024657,4]
[365783771,1749910254725,-460.0,0.00024657,4]
[365783772,1749910254735,-460.0,0.00024657,4]
[365783773,1749910254744,-460.0,0.00024657,4]
[365783774,1749910254755,-2467.04,0.00024657,4]
[365783775,1749910254767,-460.0,0.00024657,4]
[365783776,1749910254777,-1226.2,0.00024657,4]
[365783777,1749910254786,-2106.91,0.00024657,4]
[365783778,1749910254796,-460.0,0.00024657,4]
[365783779,1749910254807,-460.0,0.00024657,4]
[365783780,1749910254816,-477.79,0.00024657,4]
[365783781,1749910254825,-1996.77,0.00024657,4]
[365783782,1749910254835,-3628.01,0.00024657,4]
[365783783,1749910254844,-460.0,0.00024657,4]
[365783784,1749910254854,-460.0,0.00024657,4]
[365783785,1749910254864,-460.0,0.00024657,4]
[365783786,1749910254874,-3294.11,0.00024657,4]
[365783787,1749910254884,-700.42,0.00024657,4]
[365783788,1749910254893,-460.0,0.00024657,4]
[365783789,1749910254902,-346.73,0.00024657,4]
[365783790,1749910254912,-1234.47,0.00024657,4]
[365783791,1749910254922,-615.07,0.00024657,4]
[365783792,1749910254932,-980.96,0.00024657,4]
[365783793,1749910254941,-1829.51,0.00024657,4]
[365783794,1749910254951,-460.0,0.00024657,4]
[365783795,1749910254960,-460.0,0.00024657,4]
[365783796,1749910254970,-1467.6,0.00024657,4]
[365783797,1749910254979,-2528.24,0.00024657,4]
[365783798,1749910254989,-460.0,0.00024657,4]
[365783799,1749910254999,-460.0,0.00024657,4]
[365783800,1749910255009,-460.0,0.00024657,4]
[365783801,1749910255018,-1000.0,0.00024658,2]
[365783802,1749910255027,-1000.0,0.00024658,2]
[365783803,1749910255037,-1000.0,0.00024658,2]
[365783804,1749910255047,-1000.0,0.00024658,2]
[365783805,1749910255057,-1000.0,0.00024658,2]
[365783806,1749910255067,-200.0,0.00024658,15]
[365783807,1749910255077,-1000.0,0.00024658,2]
[365783808,1749910255087,-1000.0,0.00024658,2]
[365783809,1749910255096,-1000.0,0.00024658,2]
[365783810,1749910255106,-500.0,0.00024658,2]
[365783811,1749910255117,-1500.0,0.00024668,2]
[365783812,1749910255127,-1500.0,0.00024668,2]
[365783813,1749910255137,-1001.74153471,0.00024668,2]
[365783814,1749910255147,-1358.43347066,0.00024668,2]
[365783815,1749910255156,-1502.4400778,0.00024668,2]
[365783816,1749910255166,-1800.0,0.00024668,2]
[365783817,1749910255176,-1500.0,0.00024668,2]
[365783818,1749910255185,-207.0,0.0002467,2]
[365783819,1749910255195,-500.0,0.00024685,2]
[365783820,1749910255205,-529.83501143,0.00024693,11]
[365783821,1749910255215,-200.0,0.00024699,2]
[365783822,1749910255223,-250.0,0.000247,2]
[365783823,1749910255233,-250.0,0.000247,2]
[365783824,1749910255242,-250.0,0.000247,2]
[365783825,1749910255252,-250.0,0.000247,2]
[365783826,1749910255261,-250.0,0.000247,2]
[365783827,1749910255272,-250.0,0.000247,2]
[365783828,1749910255282,-300.6,0.000247,2]
[365783829,1749910255291,-500.0,0.000247,30]
[365783830,1749910255300,-769.53,0.000247,31]
[365783831,1749910255310,-769.53,0.000247,31]
[365783832,1749910255319,-769.53,0.000247,31]
[365783833,1749910255328,-404.36890186,0.000247,31]
[365783834,1749910255341,-365.16109814,0.000247,31]
[365783835,1749910255350,-769.53,0.000247,31]
[365783836,1749910255359,-769.53,0.000247,31]
[365783837,1749910255370,-769.53,0.000247,31]
[365783838,1749910255379,-769.53,0.000247,31]
[365783839,1749910255390,-318.30871753,0.000247,31]
[365783840,1749910255402,-451.22128247,0.000247,31]
[365783841,1749910255411,-769.53,0.000247,31]
[365783842,1749910255420,-769.53,0.000247,31]
[365783843,1749910255430,-769.53,0.000247,31]
[365783844,1749910255439,-769.53,0.000247,31]
[365783845,1749910255449,-769.53,0.000247,31]
[365783846,1749910255458,-769.53,0.000247,31]
[365783847,1749910255467,-769.53,0.000247,31]
[365783848,1749910255477,-500.0,0.00024713,2]
[365783849,1749910255486,-500.0,0.0002474,2]
[365783850,1749910255497,-724.85,0.00024742,6]
[365783851,1749910255506,-168.0,0.00024754,2]
[365783852,1749910255516,-800.0,0.0002476,2]
[365783853,1749910255525,-500.0,0.00024768,2]
[365783854,1749910255535,-426.96292936,0.0002477,2]
[365783855,1749910255544,-903.0,0.00024781,2]
[365783856,1749910255554,-500.0,0.00024795,2]
[365783857,1749910255563,-529.83501143,0.00024797,11]
[365783858,1749910255572,-200.0,0.00024799,2]
[365783859,1749910255582,-688.42077674,0.000248,2]
[365783860,1749910255831,-460.0,0.00021917,4]
[365783861,1749910255843,-460.0,0.00021917,4]
[365783862,1749910255855,-360.0,0.00021917,4]
[365783863,1749910255865,-460.0,0.00022191,4]
[365783864,1749910255875,-460.0,0.00022191,4]
[365783865,1749910255885,-460.0,0.00022465,4]
[365783866,1749910255895,-424.40141186,0.00023715,2]
[365783867,1749910255906,-864.18995397,0.0002432,2]
[365783868,1749910255920,-1908.18695186,0.0002432,2]
[365783869,1749910255929,-1122.13079468,0.000248,2]
[365783894,1749910557808,1603.47018826,0.0002,2]
[365783895,1749910557832,396.52981174,0.0002,2]
[365783923,1749910923964,5000.0,0.00024658,120]
[365783942,1749911087223,368.102749,0.00013699,2]
[365783953,1749911156184,6989.40803926,0.0002,2]
[365783954,1749911156209,1916.59196074,0.0002,2]
[365783955,1749911237262,1500.0,0.00024658,120]
[365783960,1749911272094,5135.99479525,0.00018,2]
[365783965,1749911326606,701.45384401,0.0002,15]
[365783966,1749911326629,3351.54615599,0.0002,15]
[365784008,1749911432383,-154.15271674,0.00020017,2]
[365784010,1749911432393,-828.83052722,0.00020071,2]
[365784030,1749911432543,-314.54692683,0.00020071,2]
[365784033,1749911432555,-908.10868304,0.00020071,2]
[365784035,1749911432564,-368.102749,0.00020187,2]
[365784037,1749911432573,-300.0,0.00020217,2]
[365784039,1749911432583,-300.0,0.00020217,2]
[365784041,1749911432592,-300.0,0.00020217,2]
[365784043,1749911432608,-1200.0,0.00020217,2]
[365784045,1749911432617,-9225.40605209,0.00020218,2]
[365784046,1749911432629,-488.1269753,0.00020218,2]
[365784047,1749911432640,-15186.46697261,0.00020218,2]
[365784050,1749911432649,-160.0,0.00020218,2]
[365784052,1749911432658,-179.826006,0.00020248,2]
[365784055,1749911432668,-4671.5196115,0.0002049,2]
[365784058,1749911432677,-477.470446,0.00020889,2]
[365784061,1749911432688,-168.3649542,0.00020894,2]
[365784063,1749911432703,-371.76080312,0.00020914,2]
[365784065,1749911432712,-170.69932154,0.00020946,2]
[365784067,1749911432722,-500.0,0.00020946,2]
[365784068,1749911432732,-500.0,0.00020946,2]
[365784069,1749911432741,-500.0,0.00020946,2]
[365784070,1749911432751,-500.0,0.00020946,2]
[365784071,1749911432760,-500.0,0.00020946,2]
[365784072,1749911432769,-541.88810657,0.00020946,2]
[365784073,1749911432779,-500.0,0.00020946,2]
[365784074,1749911432788,-478.40749458,0.00020946,2]
[365784075,1749911432797,-500.0,0.00020946,2]
[365784077,1749911432806,-473.92291851,0.00020946,2]
[365784079,1749911432816,-836.0,0.00020947,2]
[365784080,1749911432825,-1324.85,0.00021056,2]
[365784081,1749911432834,-500.0,0.00021154,2]
[365784082,1749911432843,-168.0,0.00021333,2]
[365784083,1749911432851,-168.0,0.00021363,2]
[365784084,1749911432860,-168.0,0.00021376,2]
[365784085,1749911432870,-2940.39709766,0.00021542,2]
[365784086,1749911432879,-168.0,0.00021555,2]
[365784087,1749911432888,-576.45823497,0.00021817,2]
[365784088,1749911432897,-168.0,0.00021827,2]
[365784089,1749911432906,-155.779,0.0002184,2]
[365784090,1749911432915,-168.0,0.0002184,2]
[365784091,1749911432925,-168.0,0.00021873,2]
[365784092,1749911432944,-469.01950266,0.00021898,2]
[365784093,1749911432954,-333.84746643,0.000219,6]
[365784095,1749911432963,-256.06,0.00021907,3]
[365784096,1749911432972,-768.2,0.00021907,3]
[365784097,1749911432982,-1442.77809707,0.0002191,2]
[365784098,1749911432992,-500.0,0.00021916,2]
[365784099,1749911433001,-160.0,0.00021916,2]
[365784100,1749911433011,-500.0,0.00021916,2]
[365784101,1749911433021,-500.0,0.00021916,2]
[365784102,1749911433030,-416.97282837,0.00021916,2]
[365784103,1749911433040,-641.58062042,0.00021917,4]
[365784104,1749911433050,-420.0,0.00021917,4]
[365784105,1749911433059,-334.06083632,0.00021917,4]
[365784106,1749911433069,-460.0,0.00021917,4]
[365784107,1749911433079,-460.0,0.00021917,4]
[365784108,1749911433089,-460.0,0.00021917,4]
[365784109,1749911433098,-460.0,0.00021917,4]
[365784110,1749911433111,-460.0,0.00021917,4]
[365784111,1749911433121,-380.0,0.00021917,4]
[365784112,1749911433131,-449.1,0.00021917,4]
[365784113,1749911433141,-200.0,0.00021917,4]
[365784114,1749911433151,-460.0,0.00021917,4]
[365784115,1749911433160,-340.0,0.00021917,4]
[365784116,1749911433170,-461.49316756,0.00021917,4]
[365784117,1749911433181,-460.0,0.00021917,4]
[365784118,1749911433192,-286.73442647,0.00021917,4]
[365784119,1749911433202,-460.0,0.00021917,4]
[365784120,1749911433212,-460.0,0.00021917,4]
[365784121,1749911433222,-460.0,0.00021917,4]
[365784122,1749911433232,-460.0,0.00021917,4]
[365784123,1749911433242,-467.52555373,0.00021917,4]
[365784124,1749911433252,-460.0,0.00021917,4]
[365784125,1749911433262,-460.0,0.00021917,4]
[365784126,1749911433272,-460.0,0.00021917,4]
[365784127,1749911433282,-460.0,0.00021917,4]
[365784128,1749911433293,-460.0,0.00021917,4]
[365784129,1749911433302,-460.0,0.00021917,4]
[365784130,1749911433312,-460.0,0.00021917,4]
[365784131,1749911433322,-460.0,0.00021917,4]
[365784132,1749911433332,-460.0,0.00021917,4]
[365784133,1749911433342,-460.0,0.00021917,4]
[365784134,1749911433351,-670.33,0.00021917,4]
[365784135,1749911433360,-460.0,0.00021917,4]
[365784136,1749911433370,-460.0,0.00021917,4]
[365784137,1749911433380,-460.0,0.00021917,4]
[365784138,1749911433390,-340.0,0.00021917,4]
[365784139,1749911433399,-460.0,0.00021917,4]
[365784140,1749911433409,-460.0,0.00021917,4]
[365784141,1749911433561,-500.0,0.00021917,4]
[365784142,1749911433571,-460.0,0.00021917,4]
[365784143,1749911433580,-460.0,0.00021917,4]
[365784144,1749911433590,-460.0,0.00021917,4]
[365784145,1749911433599,-460.0,0.00021917,4]
[365784146,1749911433609,-460.0,0.00021917,4]
[365784147,1749911433619,-460.0,0.00021917,4]
[365784148,1749911433635,-438.55521862,0.00021917,4]
[365784149,1749911433649,-21.44478138,0.00021917,4]
[365784150,1749911433658,-176.76006391,0.00021917,4]
[365784151,1749911433667,-460.0,0.00021917,4]
[365784152,1749911433678,-460.0,0.00021917,4]
[365784153,1749911433687,-460.0,0.00021917,4]
[365784154,1749911433696,-460.0,0.00021917,4]
[365784155,1749911433706,-460.0,0.00021917,4]
[365784156,1749911433715,-46.76498303,0.00021917,4]
[365784157,1749911433727,-293.23501697,0.00021917,4]
[365784158,1749911433737,-460.0,0.00021917,4]
[365784159,1749911433747,-460.0,0.00021917,4]
[365784160,1749911433756,-176.75713331,0.00021917,4]
[365784161,1749911433765,-460.0,0.00021917,4]
[365784162,1749911433775,-460.0,0.00021917,4]
[365784163,1749911433784,-460.0,0.00021917,4]
[365784164,1749911433794,-460.0,0.00021917,4]
[365784165,1749911433803,-460.0,0.00021917,4]
[365784166,1749911433813,-460.0,0.00021917,4]
[365784167,1749911433822,-49.50784472,0.00021917,4]
[365784188,1749911438296,-220.49215528,0.00021917,4]
[365784189,1749911438306,-460.0,0.00021917,4]
[365784190,1749911438315,-460.0,0.00021917,4]
[365784191,1749911438325,-460.0,0.00021917,4]
[365784192,1749911438334,-460.0,0.00021917,4]
[365784193,1749911438344,-131.42419904,0.00021917,4]
[365784194,1749911438355,-328.57580096,0.00021917,4]
[365784195,1749911438364,-327.28419904,0.00021917,4]
[365784196,1749911438380,-49.653505,0.00021917,4]
[365784197,1749911438390,-430.0,0.00021917,4]
[365784198,1749911438400,-460.0,0.00021917,4]
[365784199,1749911438409,-350.0,0.00021917,4]
[365784200,1749911438419,-362.24882463,0.00021917,4]
[365784201,1749911438428,-460.0,0.00021917,4]
[365784202,1749911438437,-460.0,0.00021917,4]
[365784203,1749911438447,-428.96527999,0.00021917,4]
[365784204,1749911438456,-460.0,0.00021917,4]
[365784205,1749911438465,-401.65866752,0.00021917,4]
[365784206,1749911438475,-606.756726,0.00021917,4]
[365784207,1749911438484,-460.0,0.00021917,4]
[365784208,1749911438493,-321.60694409,0.00021917,4]
[365784209,1749911438503,-460.0,0.00021917,4]
[365784210,1749911438512,-460.0,0.00021917,4]
[365784211,1749911438521,-460.0,0.00021917,4]
[365784212,1749911438531,-460.0,0.00021917,4]
[365784213,1749911438540,-460.0,0.00021917,4]
[365784214,1749911438550,-270.0,0.00021917,4]
[365784215,1749911438559,-460.0,0.00021917,4]
[365784216,1749911438569,-460.0,0.00021917,4]
[365784218,1749911438578,-460.0,0.00021917,4]
[365784219,1749911438587,-440.0,0.00021917,4]
[365784221,1749911438596,-460.0,0.00021917,4]
[365784223,1749911438606,-460.0,0.00021917,4]
[365784225,1749911438615,-460.0,0.00021917,4]
[365784227,1749911438624,-430.0,0.00021917,4]
[365784229,1749911438634,-460.0,0.00021917,4]
[365784231,1749911438643,-460.0,0.00021917,4]
[365784233,1749911438652,-460.0,0.00021917,4]
[365784234,1749911438662,-500.0,0.00021917,4]
[365784236,1749911438671,-460.0,0.00021917,4]
[365784238,1749911438681,-460.0,0.00021917,4]
[365784240,1749911438691,-460.0,0.00021917,4]
[365784242,1749911438702,-460.0,0.00021917,4]
[365784244,1749911438712,-460.0,0.00021917,4]
[365784246,1749911438722,-460.0,0.00021917,4]
[365784248,1749911438731,-460.0,0.00021917,4]
[365784250,1749911438741,-460.0,0.00021917,4]
[365784252,1749911438751,-1073.86,0.00021917,4]
[365784254,1749911438760,-460.0,0.00021917,4]
[365784256,1749911438769,-460.0,0.00021917,4]
[365784258,1749911438778,-220.0,0.00021917,4]
[365784260,1749911438787,-500.0,0.00021917,4]
[365784262,1749911438797,-460.0,0.00021917,4]
[365784264,1749911438806,-460.0,0.00021917,4]
[365784266,1749911438816,-845.69,0.00021917,4]
[365784268,1749911438825,-460.0,0.00021917,4]
[365784270,1749911438834,-460.0,0.00021917,4]
[365784272,1749911438843,-545.12192138,0.00021917,4]
[365784274,1749911438853,-460.0,0.00021917,4]
[365784276,1749911438862,-460.0,0.00021917,4]
[365784278,1749911438871,-460.0,0.00021917,4]
[365784280,1749911438880,-460.0,0.00021917,4]
[365784282,1749911438889,-340.0,0.00021917,4]
[365784284,1749911438899,-460.0,0.00021917,4]
[365784286,1749911438908,-460.0,0.00021917,4]
[365784288,1749911438918,-519.94,0.00021917,4]
[365784290,1749911438927,-910.98,0.00021917,4]
[365784293,1749911438937,-460.0,0.00021917,4]
[365784295,1749911438948,-460.0,0.00021917,4]
[365784297,1749911438957,-460.0,0.00021917,4]
[365784299,1749911438967,-460.0,0.00021917,4]
[365784301,1749911438976,-460.0,0.00021917,4]
[365784303,1749911438985,-460.0,0.00021917,4]
[365784305,1749911438994,-460.0,0.00021917,4]
[365784306,1749911439002,-460.0,0.00021917,4]
[365784308,1749911439012,-460.0,0.00021917,4]
[365784311,1749911439021,-460.0,0.00021917,4]
[365784313,1749911439030,-460.0,0.00021917,4]
[365784315,1749911439041,-360.0,0.00021917,4]
[365784317,1749911439050,-460.0,0.00021917,4]
[365784319,1749911439059,-2925.06,0.00021917,4]
[365784320,1749911439067,-460.0,0.00021917,4]
[365784322,1749911439077,-460.0,0.00021917,4]
[365784324,1749911439086,-352.49311707,0.00021917,4]
[365784325,1749911439095,-460.0,0.00021917,4]
[365784326,1749911439105,-482.94,0.00021917,4]
[365784328,1749911439117,-460.0,0.00021917,4]
[365784330,1749911439126,-300.0,0.00021917,4]
[365784331,1749911439136,-460.0,0.00021917,4]
[365784332,1749911439145,-460.0,0.00021917,4]
[365784333,1749911439154,-460.0,0.00021917,4]
[365784334,1749911439163,-2014.99,0.00021917,4]
[365784335,1749911439172,-291.27918575,0.00021917,4]
[365784336,1749911439181,-2469.77,0.00021917,4]
[365784337,1749911439190,-1346.03,0.00021917,4]
[365784338,1749911439199,-460.0,0.00021917,4]
[365784339,1749911439208,-460.0,0.00021917,4]
[365784340,1749911439217,-460.0,0.00021917,4]
[365784341,1749911439226,-460.0,0.00021917,4]
[365784342,1749911439235,-460.0,0.00021917,4]
[365784343,1749911439245,-460.0,0.00021917,4]
[365784344,1749911439254,-460.0,0.00021917,4]
[365784345,1749911439263,-352.01997378,0.00021917,4]
[365784346,1749911439272,-3346.9,0.00021917,4]
[365784347,1749911439281,-460.0,0.00021917,4]
[365784348,1749911439291,-460.0,0.00021917,4]
[365784349,1749911439300,-460.0,0.00021917,4]
[365784350,1749911439309,-460.0,0.00021917,4]
[365784351,1749911439318,-460.0,0.00021917,4]
[365784352,1749911439327,-460.0,0.00021917,4]
[365784353,1749911439336,-460.0,0.00021917,4]
[365784354,1749911439346,-2156.97,0.00021917,4]
[365784355,1749911439355,-460.0,0.00021917,4]
[365784356,1749911439364,-522.59,0.00021917,4]
[365784357,1749911439373,-3158.19,0.00021917,4]
[365784358,1749911439382,-460.0,0.00021917,4]
[365784359,1749911439392,-460.0,0.00021917,4]
[365784360,1749911439401,-460.0,0.00021917,4]
[365784361,1749911439410,-360.0,0.00021917,4]
[365784362,1749911439419,-460.0,0.00021917,4]
[365784363,1749911439429,-490.0,0.00021917,4]
[365784364,1749911439438,-720.75,0.00021917,4]
[365784365,1749911439448,-1222.99,0.00021917,4]
[365784366,1749911439457,-518.5210037,0.00021917,4]
[365784367,1749911439466,-430.0,0.00021917,4]
[365784368,1749911439475,-460.0,0.00021917,2]
[365784369,1749911439485,-460.0,0.00021917,4]
[365784370,1749911439495,-460.0,0.00021917,4]
[365784371,1749911439504,-460.0,0.00021917,4]
[365784372,1749911439514,-460.0,0.00021917,4]
[365784373,1749911439523,-544.21,0.00021917,4]
[365784374,1749911439532,-460.0,0.00021917,4]
[365784375,1749911439541,-440.0,0.00021917,4]
[365784376,1749911439550,-460.0,0.00021917,4]
[365784377,1749911439559,-460.0,0.00021917,4]
[365784378,1749911439569,-460.0,0.00021917,4]
[365784379,1749911439579,-460.0,0.00021917,4]
[365784380,1749911439589,-460.0,0.00021917,4]
[365784381,1749911439599,-460.0,0.00021917,4]
[365784382,1749911439608,-460.0,0.00021917,4]
[365784383,1749911439617,-1729.14,0.00021917,4]
[365784384,1749911439626,-460.0,0.00021917,4]
[365784385,1749911439636,-460.0,0.00021917,4]
[365784386,1749911439645,-460.0,0.00021917,4]
[365784387,1749911439654,-460.0,0.00021917,4]
[365784388,1749911439663,-984.26,0.00021917,4]
[365784389,1749911439673,-460.0,0.00021917,4]
[365784390,1749911439683,-460.0,0.00021917,4]
[365784391,1749911439693,-460.0,0.00021917,4]
[365784392,1749911439702,-1371.87,0.00021917,4]
[365784393,1749911439804,-2294.58,0.00021917,4]
[365784394,1749911439814,-460.0,0.00021917,4]
[365784395,1749911439824,-460.0,0.00021917,4]
[365784396,1749911439835,-460.0,0.00021917,4]
[365784397,1749911439844,-460.0,0.00021917,4]
[365784398,1749911439854,-460.0,0.00021917,4]
[365784399,1749911439863,-460.0,0.00021917,4]
[365784400,1749911439873,-460.0,0.00021917,4]
[365784401,1749911439883,-460.0,0.00021917,4]
[365784402,1749911439892,-2935.33,0.00021917,4]
[365784403,1749911439901,-460.0,0.00021917,4]
[365784404,1749911439911,-790.66,0.00021917,4]
[365784405,1749911439920,-460.0,0.00021917,4]
[365784406,1749911439929,-460.0,0.00021917,4]
[365784407,1749911439939,-460.0,0.00021917,4]
[365784408,1749911439948,-500.0,0.00021973,2]
[365784409,1749911439958,-500.0,0.00021973,2]
[365784410,1749911439967,-500.0,0.00021973,2]
[365784411,1749911439976,-500.0,0.00021973,2]
[365784412,1749911439986,-5000.0,0.0002199,2]
[365784413,1749911439995,-21185.0,0.00022,7]
[365784414,1749911440005,-213.28201367,0.00022,7]
[365784415,1749911440015,-171.0,0.00022,2]
[365784416,1749911440024,-845.10789306,0.00022,7]
[365784417,1749911440034,-6541.33153089,0.00022,7]
[365784418,1749911440043,-333.84746627,0.00022003,6]
[365784419,1749911440052,-420.0,0.00022009,2]
[365784420,1749911440062,-420.0,0.00022009,2]
[365784421,1749911440071,-168.0,0.00022033,2]
[365784422,1749911440081,-333.84746627,0.00022107,6]
[365784423,1749911440090,-1680.0,0.00022114,2]
[365784424,1749911440100,-500.0,0.00022173,2]
[365784425,1749911440111,-479.6935917,0.00022191,4]
[365784426,1749911440121,-420.0,0.00022191,4]
[365784427,1749911440131,-460.0,0.00022191,4]
[365784428,1749911440140,-540.0,0.00022191,4]
[365784429,1749911440151,-160.0,0.00022191,4]
[365784430,1749911440161,-320.0,0.00022191,4]
[365784431,1749911440171,-460.0,0.00022191,4]
[365784432,1749911440182,-460.0,0.00022191,4]
[365784433,1749911440192,-460.0,0.00022191,4]
[365784434,1749911440203,-460.0,0.00022191,4]
[365784435,1749911440212,-460.0,0.00022191,4]
[365784436,1749911440222,-460.0,0.00022191,4]
[365784438,1749911440231,-460.0,0.00022191,4]
[365784439,1749911440241,-460.0,0.00022191,4]
[365784440,1749911440250,-460.0,0.00022191,4]
[365784441,1749911440260,-400.0,0.00022191,4]
[365784442,1749911440269,-460.0,0.00022191,4]
[365784443,1749911440279,-670.33,0.00022191,4]
[365784444,1749911440289,-460.0,0.00022191,4]
[365784445,1749911440298,-435.41635084,0.00022191,4]
[365784446,1749911440308,-460.0,0.00022191,4]
[365784447,1749911440317,-460.0,0.00022191,4]
[365784448,1749911440327,-460.0,0.00022191,4]
[365784449,1749911440337,-460.0,0.00022191,4]
[365784450,1749911440346,-509.05792954,0.00022191,4]
[365784451,1749911440356,-460.0,0.00022191,4]